{"text_format":"1","workbook":"xlsx","n_sheets":3,"sheets":["паспорт","додаток","variablesList"],"not_rendered":{"charts":0,"images":0,"macros":1,"external_links":0,"defined_names":3,"comments":0,"pivot_tables":0},"unopened":[],"bounds":{"document_bytes":16777216,"sheet_cells":100000,"rows_first":2000,"rows_last":500,"rows_between":2000,"halvings":0,"cell_chars":16384,"cell_head_chars":4096},"cells_cut":0,"cells_raw":0,"read":"whole","date_system":"1900"}

{"sheet":"паспорт","index":0,"n_rows":51,"n_cols":31,"rows_kept":51,"cut":false,"hidden":false,"merged":[[6,0,9,0],[49,1,49,26],[8,11,9,11],[41,18,42,18],[41,19,42,19],[41,14,42,14],[42,7,42,13],[41,15,42,15],[41,16,42,16],[41,17,42,17],[8,9,9,9],[8,10,9,10],[6,25,9,25],[45,1,45,26],[41,0,41,13],[8,3,9,3],[47,1,47,26],[43,20,43,27],[42,20,42,27],[41,20,41,27],[6,27,9,27],[8,8,9,8],[6,26,9,26],[6,24,9,24],[6,23,9,23],[8,1,9,1],[8,2,9,2],[8,5,9,5],[8,6,9,6],[8,4,9,4],[0,6,0,24],[1,6,1,24],[0,25,0,27],[4,23,4,24],[8,12,9,12],[4,21,4,22],[8,14,8,16],[8,17,8,19],[8,20,8,22],[7,14,7,22],[2,6,2,24],[4,26,4,27],[8,7,9,7],[6,1,7,12],[7,13,9,13],[6,13,6,22]]}
["ПАТ \"УКРТРАНСГАЗ\"",null,null,null,null,null,"ПАСПОРТ ФІЗИКО-ХІМІЧНИХ ПОКАЗНИКІВ ПРИРОДНОГО ГАЗУ  № 168"]
["Філія \"УМГ \"КИЇВТРАНСГАЗ\"",null,null,null,null,null,"переданого Чернігівським ЛВУМГ та прийнятого  ПАТ \"Чернігівгаз\""]
["Чернігівське ЛВУМГ",null,null,null,null,null,"Маршрут № 168"]
["Вимірювальна хіміко-аналітична лабораторія"]
["Свідоцтво № 74/2014 чинно до 01.07.2019 р.",null,null,null,null,null,null,null,null,null,"по газопроводу  \"ДАШАВА-КИЇВ-БРЯНСЬК-МОСКВА\"",null,null,null,null,null,null,null,null,null,null,"за період з",null,"2017-02-01",null," по","2017-02-28"]
[]
["Число місяця","Компонентний склад, % мол. ",null,null,null,null,null,null,null,null,null,null,null,"Фізико-хімічні показники газу обчислені на основі компонентного складу, 101,325 кПа",null,null,null,null,null,null,null,null,null,"Температура точки роси за вологою (Р = 3.92 МПа), ºС","Температура точки роси за вуглеводнями, ºС","Вміст сірководню, г/м3","Вміст меркаптанової сірки, г/м3","Вміст механічних домішок, г/м3"]
[null,null,null,null,null,null,null,null,null,null,null,null,null,"Густина абсолютна, кг/м3,при 20 ºС, ","Температура вимірювання/згоряння при  20/25°С"]
[null,"метан, С1","етан, С2","пропан, С3","ізо-бутан, і-С4","н-бутан, н-С4","нео-пентан, нео-С5","ізо-пентан, і-С5","н-пентан, н-С5","гексани та вищі, С6+","кисень, О2","азот, N2","діоксид вуглецю, CО2",null,"Теплота згоряння нижча",null,null,"Теплота згоряння вища",null,null,"Число Воббе вище"]
[null,null,null,null,null,null,null,null,null,null,null,null,null,null," ккал/м3"," МДж/м3","кВт⋅год/м3"," ккал/м3"," МДж/м3","кВт⋅год/м3"," ккал/м3"," МДж/м3","кВт⋅год/м3",null,null,null,null,null,null,null,"  "]
[1,null,null,null,null,null,null,null,null,null,null,null,null,null,8259,34.58,9.61,9143,38.28,10.63,null,null,null,null,null,null,null,null,{"$f":"SUM(B11:M11)+$K$42+$N$42","v":0}]
[2,null,null,null,null,null,null,null,null,null,null,null,null,null,8259,34.58,9.61,9143,38.28,10.63,null,null,null,null,null,null,null,null,0]
[3,null,null,null,null,null,null,null,null,null,null,null,null,null,8259,34.58,9.61,9143,38.28,10.63,null,null,null,null,null,null,null,null,0,{"$f":"IF(AC13=100,\"ОК\",\" \")","v":" "}]
[4,null,null,null,null,null,null,null,null,null,null,null,null,null,8259,34.58,9.61,9143,38.28,10.63,null,null,null,null,null,null,null,null,0,{"$f":"IF(AC14=100,\"ОК\",\" \")","v":" "}]
[5,null,null,null,null,null,null,null,null,null,null,null,null,null,8259,34.58,9.61,9143,38.28,10.63,null,null,null,null,null,null,null,null,0," "]
[6,null,null,null,null,null,null,null,null,null,null,null,null,null,8259,34.58,9.61,9143,38.28,10.63,null,null,null,null,null,null,null,null,0," "]
[7,null,null,null,null,null,null,null,null,null,null,null,null,null,8259,34.58,9.61,9143,38.28,10.63,null,null,null,null,null,null,null,null,0," "]
[8,89.865200000000002,4.9405000000000001,1.1445000000000001,0.12139999999999999,0.1943,3.3E-3,5.0999999999999997E-2,4.0500000000000001E-2,4.3799999999999999E-2,4.8999999999999998E-3,1.6012,1.9894000000000001,0.75090000000000001,8244,34.520000000000003,9.59,9127,38.21,10.61,11560,48.4,13.44,-12.5,-12.2,"<0,01","<0,01","відс.",{"$f":"SUM(B18:M18)+$K$42+$N$42","v":100},"ОК"]
[9,null,null,null,null,null,null,null,null,null,null,null,null,null,8244,34.520000000000003,9.59,9127,38.21,10.61,null,null,null,null,null,null,null,null,0," "]
[10,null,null,null,null,null,null,null,null,null,null,null,null,null,8244,34.520000000000003,9.59,9127,38.21,10.61,null,null,null,null,null,null,null,null,0," "]
[11,null,null,null,null,null,null,null,null,null,null,null,null,null,8244,34.520000000000003,9.59,9127,38.21,10.61,null,null,null,null,null,null,null,null,0," "]
[12,null,null,null,null,null,null,null,null,null,null,null,null,null,8244,34.520000000000003,9.59,9127,38.21,10.61,null,null,null,null,null,null,null,null,0," "]
[13,null,null,null,null,null,null,null,null,null,null,null,null,null,8244,34.520000000000003,9.59,9127,38.21,10.61,null,null,null,null,null,null,null,null,0," "]
[14,89.977500000000006,4.8895,1.1358999999999999,0.1217,0.20430000000000001,2.8E-3,5.2900000000000003E-2,4.2799999999999998E-2,5.57E-2,5.0000000000000001E-3,1.5732999999999999,1.9386000000000001,0.75039999999999996,8253,34.549999999999997,9.6,9136,38.25,10.63,11574,48.46,13.46,-12.6,-13.2,"<0,01","<0,01","відс.",100,"ОК"]
[15,null,null,null,null,null,null,null,null,null,null,null,null,null,8253,34.549999999999997,9.6,9136,38.25,10.63,null,null,null,null,null,null,null,null,0," "]
[16,null,null,null,null,null,null,null,null,null,null,null,null,null,8253,34.549999999999997,9.6,9136,38.25,10.63,null,null,null,null,null,null,null,null,0," "]
[17,null,null,null,null,null,null,null,null,null,null,null,null,null,8253,34.549999999999997,9.6,9136,38.25,10.63,null,null,null,null,null,null,null,null,0," "]
[18,null,null,null,null,null,null,null,null,null,null,null,null,null,8253,34.549999999999997,9.6,9136,38.25,10.63,null,null,null,null,null,null,null,null,0," "]
[19,null,null,null,null,null,null,null,null,null,null,null,null,null,8253,34.549999999999997,9.6,9136,38.25,10.63,null,null,null,null,null,null,null,null,0," "]
[20,90.009900000000002,4.8517000000000001,1.0947,0.1171,0.1903,3.0999999999999999E-3,5.1400000000000001E-2,4.1300000000000003E-2,5.6300000000000003E-2,4.7999999999999996E-3,1.5664,2.0127000000000002,0.75019999999999998,8236,34.479999999999997,9.58,9118,38.18,10.61,11553,48.37,13.44,-12,-12.3,"<0,01","<0,01","відс.",99.99969999999999,{"$f":"IF(AC30=100,\"ОК\",\" \")","v":" "}]
[21,null,null,null,null,null,null,null,null,null,null,null,null,null,8236,34.479999999999997,9.58,9118,38.18,10.61,null,null,null,null,null,null,null,null,0," "]
[22,null,null,null,null,null,null,null,null,null,null,null,null,null,8236,34.479999999999997,9.58,9118,38.18,10.61,null,null,null,null,null,null,null,null,0," "]
[23,null,null,null,null,null,null,null,null,null,null,null,null,null,8236,34.479999999999997,9.58,9118,38.18,10.61,null,null,null,null,null,null,null,null,0,{"$f":"IF(AC33=100,\"ОК\",\" \")","v":" "}]
[24,null,null,null,null,null,null,null,null,null,null,null,null,null,8236,34.479999999999997,9.58,9118,38.18,10.61,null,null,null,null,null,null,null,null,0," "]
[25,null,null,null,null,null,null,null,null,null,null,null,null,null,8236,34.479999999999997,9.58,9118,38.18,10.61,null,null,null,null,null,null,null,null,0," "]
[26,null,null,null,null,null,null,null,null,null,null,null,null,null,8236,34.479999999999997,9.58,9118,38.18,10.61,null,null,null,null,null,null,null,null,0," "]
[27,89.621499999999997,4.9344999999999999,1.0112000000000001,0.1096,0.186,3.0999999999999999E-3,5.0299999999999997E-2,3.85E-2,4.6300000000000001E-2,6.7999999999999996E-3,1.5786,2.4137,0.75380000000000003,8191,34.299999999999997,9.5299999999999994,9069,37.97,10.55,11464,48,13.33,-12,-12.5,"<0,01","<0,01","відс.",100.0001," "]
[28,null,null,null,null,null,null,null,null,null,null,null,null,null,8191,34.299999999999997,9.5299999999999994,9069,37.97,10.55,null,null,null,null,null,null,null,null,0," "]
[29,null,null,null,null,null,null,null,null,null,null,null,null,null,null,null,null,null,null,null,null,null,null,null,null,null,null,null,0," "]
[30,null,null,null,null,null,null,null,null,null,null,null,null,null,null,null,null,null,null,null,null,null,null,null,null,null,null,null,0]
[31,null,null,null,null,null,null,null,null,null,null,null,null,null,null,null,null,null,null,null,null,null,null,null,null,null,null,null,0," "]
["Рівень одоризації відповідає чинним нормативним документам",null,null,null,null,null,null,null,null,null,null,null,null,null,8247,34.53,9.59,9130,38.229999999999997,10.62]
[null,null,null,null,null,null,null,"Середньозважене значення теплоти згоряння:"]
[]
[]
[null,"Начальник управління Чернігівського ЛВУМГ                                                                                                       Шутішин В.О.                                                              01.03.2017 р.                                                              "]
[null,null,"Підрозділу підприємства, якому підпорядкована лабораторія",null,null,null,null,null,null,null,null,null,null,null,"прізвище",null,null,"підпис",null,null,null,"дата"]
[null,"Завідувач лабораторією                                                                                                                                               Лапа І.О.                                                                        01.03.2017 р.                                                  "]
[null,null,"Лабораторія, де здійснювалось вимірювання газу",null,null,null,null,null,null,null,null,null,null,null,"прізвище",null,null,"підпис",null,null,null,"дата"]
[null,"Начальник служби газовимірювання та метрології                                                                                                  Макаров О.В.                                                                01.03.2017 р."]
[null,null,"Підрозділу, відповідального за облік газу за маршрутом",null,null,null,null,null,null,null,null,null,null,null,"прізвище",null,null,"підпис",null,null,null,"дата"]

{"sheet":"додаток","index":1,"n_rows":16,"n_cols":6,"rows_kept":16,"cut":false,"hidden":false,"merged":[[0,0,0,1],[6,0,6,1],[3,2,3,4],[3,1,4,1],[3,0,4,0]]}
[]
["Додаток до Паспорту фізико-хімічних показників природного газу № 168"]
[]
["Область","ГРС, прямий споживач","Cередньозважене значення вищої теплоти згоряння"]
[null,null," МДж/м³","ккал/м³","кВт*год./м³"]
["Чернігівська область","ГРС Серединка",38.229999999999997,9130,10.62]
["Середньозважене значення вищої теплоти згоряння по маршруту № 168",null,38.229999999999997,9130,10.62]
[]
[]
[]
["Начальник управління Чернігівського ЛВУМГ                                                                                                                           ",null,null,"Шутішин В.О.",null,"01.03.2017 р."]
["Підрозділу підприємства, якому підпорядкована лабораторія",null,null,"прізвище","підпис","дата"]
["Завідувач лабораторією                                                                                                                                                                        ",null,null,"Лапа І.О.",null,"01.03.2017 р."]
["Лабораторія, де здійснювалось вимірювання газу",null,null,"прізвище","підпис","дата"]
["Начальник служби газовимірювання та метрології",null,null,"Макаров О.В.",null,"01.03.2017 р."]
["Підрозділу, відповідального за облік газу за маршрутом",null,null,"прізвище","підпис","дата"]

{"sheet":"variablesList","index":2,"n_rows":3,"n_cols":4,"rows_kept":3,"cut":false,"hidden":true,"merged":[]}
[3,"x:\\gaysin","10, 11, 24, 25, 127, 128, 132, 180, 207, 215","x:\\"]
[null,"x:\\Illinci"]
[null,"x:\\Talne"]